fUSD/lending_fUSD_20250108
["ID","MTS","AMOUNT","RATE_DAILY","PERIOD"]
[348135312,1736350237788,-1672.87,0.00010155,2]
[348135313,1736350237797,-208.69114303,0.00010156,2]
[348135314,1736350237807,-500.0,0.00010156,2]
[348135315,1736350237816,-500.0,0.00010156,2]
[348135316,1736350237826,-500.0,0.00010156,2]
[348135317,1736350237835,-500.0,0.00010156,2]
[348135318,1736350237845,-500.0,0.00010156,2]
[348135319,1736350237855,-500.0,0.00010156,2]
[348135320,1736350237864,-500.0,0.00010156,2]
[348135321,1736350237874,-626.09,0.00010156,2]
[348135322,1736350237883,-500.0,0.00010156,2]
[348135323,1736350237897,-500.0,0.00010156,2]
[348135324,1736350237910,-500.0,0.00010156,2]
[348135326,1736350237919,-500.0,0.00010156,2]
[348135328,1736350237929,-199.8047478,0.00010156,2]
[348135330,1736350237938,-514.15,0.00010156,2]
[348135332,1736350237949,-500.0,0.00010156,2]
[348135334,1736350237958,-500.0,0.00010156,2]
[348135336,1736350237968,-500.0,0.00010156,2]
[348135338,1736350237979,-780.31,0.00010156,2]
[348135340,1736350237988,-589.15,0.00010156,2]
[348135342,1736350237997,-1769.41,0.00010156,2]
[348135344,1736350238007,-642.34,0.00010156,2]
[348135347,1736350238017,-500.0,0.00010156,2]
[348135349,1736350238027,-738.9,0.00010156,2]
[348135351,1736350238036,-476.84744282,0.00010156,2]
[348135353,1736350238046,-979.74,0.00010156,2]
[348135355,1736350238056,-500.0,0.00010156,2]
[348135357,1736350238067,-500.0,0.00010156,2]
[348135359,1736350238076,-1576.21,0.00010156,2]
[348135361,1736350238086,-1152.76,0.00010156,2]
[348135363,1736350238095,-500.0,0.00010156,2]
[348135365,1736350238105,-1589.15,0.00010156,2]
[348135368,1736350238114,-500.0,0.00010156,2]
[348135371,1736350238122,-2988.36,0.00010156,2]
[348135374,1736350238132,-2284.01,0.00010156,2]
[348135377,1736350238142,-619.93917414,0.00010156,2]
[348135379,1736350238155,-983.56,0.00010157,2]
[348135381,1736350238163,-756.48,0.00010157,2]
[348135384,1736350238172,-500.0,0.00010157,2]
[348135386,1736350238182,-500.0,0.00010157,2]
[348135388,1736350238191,-500.0,0.00010157,2]
[348135390,1736350238200,-500.0,0.00010157,2]
[348135393,1736350238211,-500.0,0.00010157,2]
[348135395,1736350238222,-500.0,0.00010157,2]
[348135397,1736350238231,-500.0,0.00010157,2]
[348135399,1736350238241,-500.0,0.00010157,2]
[348135400,1736350238250,-500.0,0.00010157,2]
[348135402,1736350238259,-500.0,0.00010157,2]
[348135405,1736350238268,-1245.26,0.00010157,2]
[348135407,1736350238278,-500.0,0.00010157,2]
[348135408,1736350238288,-500.0,0.00010157,2]
[348135411,1736350238298,-500.0,0.00010157,2]
[348135413,1736350238307,-500.0,0.00010157,2]
[348135414,1736350238316,-500.0,0.00010157,2]
[348135417,1736350238326,-288.80770995,0.00010157,2]
[348135419,1736350238335,-500.0,0.00010157,2]
[348135420,1736350238344,-500.0,0.00010157,2]
[348135422,1736350238354,-500.0,0.00010157,2]
[348135424,1736350238363,-500.0,0.00010157,2]
[348135427,1736350238373,-593.85,0.00010157,2]
[348135428,1736350238384,-500.0,0.00010157,2]
[348135430,1736350238395,-500.0,0.00010157,2]
[348135432,1736350238407,-500.0,0.00010157,2]
[348135434,1736350238416,-500.0,0.00010157,2]
[348135436,1736350238425,-500.0,0.00010157,2]
[348135438,1736350238435,-419.99,0.00010157,2]
[348135440,1736350238444,-297.40531381,0.00010157,2]
[348135442,1736350238454,-4101.05,0.00010157,2]
[348135444,1736350238463,-947.05,0.00010157,2]
[348135446,1736350238472,-613.7,0.00010157,2]
[348135448,1736350238482,-500.0,0.00010157,2]
[348135450,1736350238492,-500.0,0.00010157,2]
[348135452,1736350238502,-500.0,0.00010157,2]
[348135454,1736350238511,-658.64,0.00010157,2]
[348135456,1736350238520,-500.0,0.00010157,2]
[348135458,1736350238529,-500.0,0.00010157,2]
[348135460,1736350238539,-500.0,0.00010157,2]
[348135462,1736350238549,-500.0,0.00010157,2]
[348135464,1736350238559,-546.42,0.00010157,2]
[348135466,1736350238568,-500.0,0.00010157,2]
[348135468,1736350238578,-500.0,0.00010157,2]
[348135470,1736350238587,-548.52,0.00010157,2]
[348135472,1736350238597,-500.0,0.00010157,2]
[348135474,1736350238606,-500.0,0.00010157,2]
[348135476,1736350238615,-500.0,0.00010157,2]
[348135478,1736350238625,-500.0,0.00010157,2]
[348135480,1736350238634,-500.0,0.00010157,2]
[348135482,1736350238648,-500.0,0.00010157,2]
[348135483,1736350238657,-500.0,0.00010157,2]
[348135484,1736350238666,-500.0,0.00010157,2]
[348135485,1736350238675,-500.0,0.00010157,2]
[348135486,1736350238684,-500.0,0.00010157,2]
[348135487,1736350238693,-500.0,0.00010157,2]
[348135488,1736350238702,-2764.32,0.00010157,2]
[348135489,1736350238712,-500.0,0.00010157,2]
[348135491,1736350238721,-500.0,0.00010157,2]
[348135492,1736350238731,-604.82271155,0.00010157,2]
[348135494,1736350238740,-500.0,0.00010157,2]
[348135496,1736350238750,-500.0,0.00010157,2]
[348135498,1736350238759,-500.0,0.00010157,2]
[348135500,1736350238768,-500.0,0.00010157,2]
[348135502,1736350238777,-243.52,0.00010157,2]
[348135504,1736350238786,-500.0,0.00010157,2]
[348135506,1736350238795,-500.0,0.00010157,2]
[348135508,1736350238804,-500.0,0.00010157,2]
[348135511,1736350238814,-500.0,0.00010157,2]
[348135513,1736350238824,-1556.51,0.00010157,2]
[348135515,1736350238834,-500.0,0.00010157,2]
[348135517,1736350238843,-500.0,0.00010157,2]
[348135519,1736350238852,-500.0,0.00010157,2]
[348135521,1736350238861,-500.0,0.00010157,2]
[348135523,1736350238871,-571.43,0.00010157,2]
[348135525,1736350238880,-502.7078102,0.00010157,2]
[348135527,1736350238890,-504.44641838,0.00010157,2]
[348135529,1736350238905,-504.84332597,0.00010157,2]
[348135530,1736350238914,-500.0,0.00010157,2]
[348135533,1736350238924,-561.21,0.00010157,2]
[348135535,1736350238934,-668.08,0.00010157,2]
[348135537,1736350238945,-624.25,0.00010157,2]
[348135538,1736350238954,-500.0,0.00010157,2]
[348135541,1736350238963,-500.0,0.00010157,2]
[348135543,1736350238974,-500.0,0.00010157,2]
[348135545,1736350238983,-500.0,0.00010157,2]
[348135547,1736350238994,-500.0,0.00010157,2]
[348135549,1736350239004,-338.18586901,0.00010157,2]
[348135551,1736350239013,-320.16760481,0.00010157,2]
[348135553,1736350239023,-500.0,0.00010157,2]
[348135555,1736350239032,-495.95,0.00010157,2]
[348135557,1736350239042,-500.0,0.00010157,2]
[348135559,1736350239051,-346.04,0.00010157,2]
[348135561,1736350239061,-500.0,0.00010157,2]
[348135563,1736350239072,-1159.29,0.00010157,2]
[348135565,1736350239082,-500.0,0.00010157,2]
[348135567,1736350239093,-500.0,0.00010157,2]
[348135569,1736350239103,-500.0,0.00010157,2]
[348135571,1736350239113,-500.0,0.00010157,2]
[348135573,1736350239123,-556.36,0.00010157,2]
[348135575,1736350239132,-500.0,0.00010157,2]
[348135577,1736350239142,-210.9,0.00010157,2]
[348135579,1736350239154,-500.0,0.00010157,2]
[348135581,1736350239163,-500.0,0.00010157,2]
[348135583,1736350239173,-500.0,0.00010157,2]
[348135585,1736350239182,-227.30136701,0.00010157,2]
[348135587,1736350239191,-500.0,0.00010157,2]
[348135589,1736350239201,-500.0,0.00010157,2]
[348135591,1736350239210,-1177.53,0.00010157,2]
[348135593,1736350239220,-732.94,0.00010157,2]
[348135595,1736350239229,-500.0,0.00010157,2]
[348135597,1736350239239,-634.44,0.00010157,2]
[348135599,1736350239249,-666.48,0.00010157,2]
[348135601,1736350239258,-2414.52,0.00010157,2]
[348135603,1736350239268,-702.19,0.00010157,2]
[348135605,1736350239278,-500.0,0.00010157,2]
[348135607,1736350239287,-341.4519385,0.00010157,2]
[348135609,1736350239297,-500.0,0.00010157,2]
[348135611,1736350239307,-500.0,0.00010158,2]
[348135613,1736350239316,-500.0,0.00010158,2]
[348135615,1736350239325,-506.4,0.00010158,2]
[348135616,1736350239335,-500.0,0.00010158,2]
[348135618,1736350239344,-500.0,0.00010158,2]
[348135620,1736350239355,-500.0,0.00010158,2]
[348135622,1736350239365,-500.0,0.00010158,2]
[348135624,1736350239376,-500.0,0.00010158,2]
[348135626,1736350239386,-3363.72,0.00010158,2]
[348135628,1736350239400,-1379.69,0.00010158,2]
[348135630,1736350239409,-394.28608786,0.00010158,2]
[348135633,1736350239424,-1508.24391214,0.00010158,2]
[348135635,1736350239435,-1114.22,0.00010158,2]
[348135637,1736350239445,-789.34,0.00010158,2]
[348135639,1736350239455,-500.0,0.00010158,2]
[348135641,1736350239465,-1015.14,0.00010158,2]
[348135643,1736350239475,-2467.63,0.00010158,2]
[348135645,1736350239484,-717.44,0.00010158,2]
[348135647,1736350239494,-1352.5,0.00010158,2]
[348135650,1736350239504,-201.67084511,0.00010233,2]
[348135653,1736350239514,-803.72,0.00010258,2]
[348135655,1736350239524,-635.85,0.00010259,2]
[348135657,1736350239534,-534.17,0.00010259,2]
[348135659,1736350239543,-844.76000409,0.00010259,2]
[348135664,1736350239575,-379.21999591,0.00010259,2]
[348135666,1736350239585,-225.95115109,0.00010259,2]
[348135668,1736350239596,-379.42884891,0.00010259,2]
[348135670,1736350239606,-98.89075027,0.00010259,2]
[348135672,1736350239617,-401.10924973,0.00010259,2]
[348135674,1736350239626,-500.0,0.00010259,2]
[348135676,1736350239636,-628.5,0.00010259,2]
[348135678,1736350239646,-844.83,0.00010259,2]
[348135680,1736350239656,-741.82,0.0001026,2]
[348135682,1736350239665,-1409.99,0.0001026,2]
[348135684,1736350239677,-1278.26,0.0001026,2]
[348135686,1736350239686,-1335.98396232,0.0001026,2]
[348135688,1736350239699,-1340.04603768,0.0001026,2]
[348135690,1736350239708,-1019.26,0.0001026,2]
[348135692,1736350239718,-1070.98,0.0001026,2]
[348135694,1736350239728,-1000.0,0.0001026,2]
[348135696,1736350239738,-777.78,0.0001026,2]
[348135699,1736350239748,-500.0,0.0001026,2]
[348135700,1736350239757,-2001.46,0.0001026,2]
[348135703,1736350239766,-1904.18,0.0001026,2]
[348135704,1736350239776,-500.0,0.00010268,2]
[348135707,1736350239786,-649.17,0.00010268,2]
[348135708,1736350239796,-500.0,0.00010268,2]
[348135710,1736350239806,-596.04448329,0.00010268,2]
[348135712,1736350239815,-589.58,0.00010268,2]
[348135714,1736350239825,-500.0,0.00010268,2]
[348135716,1736350239834,-500.0,0.00010268,2]
[348135718,1736350239844,-500.0,0.00010268,2]
[348135720,1736350239854,-500.0,0.00010268,2]
[348135722,1736350239863,-594.76,0.00010268,2]
[348135724,1736350239873,-500.0,0.00010268,2]
[348135726,1736350239883,-500.0,0.00010268,2]
[348135728,1736350239897,-500.0,0.00010268,2]
[348135729,1736350239910,-500.0,0.00010268,2]
[348135731,1736350239920,-500.0,0.00010268,2]
[348135733,1736350239930,-500.0,0.00010268,2]
[348135735,1736350239941,-500.0,0.00010268,2]
[348135737,1736350239951,-500.0,0.00010268,2]
[348135739,1736350239960,-500.0,0.00010268,2]
[348135741,1736350239970,-500.0,0.00010268,2]
[348135743,1736350239983,-500.0,0.00010268,2]
[348135745,1736350239993,-500.0,0.00010268,2]
[348135747,1736350240003,-500.0,0.00010268,2]
[348135749,1736350240012,-500.0,0.00010268,2]
[348135751,1736350240022,-500.0,0.00010268,2]
[348135753,1736350240031,-452.54087047,0.00010268,2]
[348135755,1736350240041,-500.0,0.00010268,2]
[348135757,1736350240051,-500.0,0.00010268,2]
[348135759,1736350240062,-623.6641514,0.00010268,2]
[348135761,1736350240072,-535.47,0.00010268,2]
[348135763,1736350240081,-413.76832189,0.00010268,2]
[348135765,1736350240090,-449.929933,0.00010268,2]
[348135767,1736350240099,-1210.07,0.00010268,2]
[348135769,1736350240108,-1670.91,0.00010268,2]
[348135771,1736350240117,-1153.8,0.00010268,2]
[348135773,1736350240127,-500.0,0.00010268,2]
[348135775,1736350240136,-1106.893711,0.00010268,2]
[348135777,1736350240149,-921.49,0.00010268,2]
[348135779,1736350240158,-937.469333,0.00010268,2]
[348135781,1736350240168,-500.0,0.00010268,2]
[348135783,1736350240178,-500.0,0.00010268,2]
[348135785,1736350240187,-3204.95,0.00010268,2]
[348135787,1736350240197,-565.58,0.00010268,2]
[348135789,1736350240209,-500.0,0.00010268,2]
[348135791,1736350240219,-500.0,0.00010268,2]
[348135793,1736350240228,-500.0,0.00010268,2]
[348135794,1736350240238,-500.0,0.00010268,2]
[348135795,1736350240248,-500.0,0.00010268,2]
[348135796,1736350240258,-500.0,0.00010268,2]
[348135808,1736350240472,-500.0,0.00010268,2]
[348135810,1736350240484,-2952.1,0.00010268,2]
[348135813,1736350240494,-1473.31,0.00010268,2]
[348135814,1736350240503,-500.0,0.00010268,2]
[348135816,1736350240513,-500.0,0.00010268,2]
[348135818,1736350240522,-500.0,0.00010268,2]
[348135820,1736350240532,-500.0,0.00010268,2]
[348135822,1736350240542,-797.79,0.00010268,2]
[348135824,1736350240551,-500.0,0.00010268,2]
[348135826,1736350240561,-1324.67,0.00010268,2]
[348135828,1736350240571,-500.0,0.00010268,2]
[348135830,1736350240580,-500.0,0.00010268,2]
[348135832,1736350240591,-500.0,0.00010268,2]
[348135834,1736350240601,-500.0,0.00010268,2]
[348135836,1736350240610,-500.0,0.00010268,2]
[348135838,1736350240619,-500.0,0.00010268,2]
[348135840,1736350240629,-1328.06,0.00010268,2]
[348135842,1736350240638,-426.51660828,0.00010268,2]
[348135860,1736350240798,-297.4799979,9.809e-05,2]
[348135862,1736350240811,-557.838,9.809e-05,2]
[348135864,1736350240822,-131.9120021,9.809e-05,2]
[348135866,1736350240831,-500.0,0.00010157,2]
[348135867,1736350240840,-73.48339172,0.00010268,2]
[348135869,1736350240850,-500.0,0.00010268,2]
[348135871,1736350240859,-923.48,0.00010268,2]
[348135873,1736350240868,-175.016573,0.00010268,2]
[348135875,1736350240877,-1919.87667213,0.00010268,2]
[348135878,1736350240895,-164.84332787,0.00010268,2]
[348135880,1736350240906,-217.62095325,0.00010268,2]
[348135883,1736350240924,-827.74904675,0.00010268,2]
[348135885,1736350240934,-2472.25095325,0.00010268,2]
[348135887,1736350240946,-1389.86904675,0.00010268,2]
[348135889,1736350240955,-500.0,0.00010268,2]
[348135891,1736350240964,-3140.18,0.00010268,2]
[348135893,1736350240974,-690.35,0.00010273,2]
[348135895,1736350240983,-666.48,0.00010273,2]
[348135896,1736350240993,-500.0,0.00010273,2]
[348135897,1736350241002,-500.0,0.00010273,2]
[348135898,1736350241011,-977.3,0.00010273,2]
[348135899,1736350241021,-500.0,0.00010273,2]
[348135900,1736350241030,-500.0,0.00010273,2]
[348135901,1736350241039,-500.0,0.00010273,2]
[348135902,1736350241049,-1000.0,0.00010299,2]
[348135903,1736350241060,-715.28565,0.000103,2]
[348135904,1736350241070,-37862.5153,0.0001033,2]
[348135905,1736350241079,-1860.0,0.00010342,2]
[348135906,1736350241088,-916.0,0.00010342,2]
[348135907,1736350241098,-1258.0,0.00010342,2]
[348135908,1736350241107,-819.0,0.00010342,2]
[348135909,1736350241118,-3776.0,0.00010342,2]
[348135910,1736350241127,-537.0,0.00010342,2]
[348135911,1736350241136,-3976.0,0.00010342,2]
[348135912,1736350241148,-1103.0,0.00010342,2]
[348135913,1736350241157,-1267.0,0.00010342,2]
[348135914,1736350241167,-2015.0,0.00010342,2]
[348135915,1736350241176,-3895.0,0.00010342,2]
[348135916,1736350241185,-636.0,0.00010342,2]
[348135919,1736350241195,-150.0,0.00010342,2]
[348135921,1736350241204,-750.668,0.00010342,2]
[348135923,1736350241213,-540.72,0.00010411,2]
[348135924,1736350241223,-1475.22,0.00010419,2]
[348135926,1736350241233,-3095.36,0.00010419,2]
[348135928,1736350241242,-1376.99,0.00010419,2]
[348135930,1736350241253,-1658.43,0.00010429,2]
[348135932,1736350241262,-1306.68,0.00010429,2]
[348135934,1736350241272,-1240.17,0.00010429,2]
[348135936,1736350241282,-565.71,0.00010429,2]
[348135938,1736350241294,-2048.08,0.00010429,2]
[348135940,1736350241304,-765.25,0.00010429,2]
[348135942,1736350241313,-299.37067463,0.00010429,2]
[348135944,1736350241323,-1363.56,0.00010429,2]
[348135946,1736350241332,-500.0,0.00010429,2]
[348135948,1736350241341,-1672.87,0.00010429,2]
[348135950,1736350241350,-500.0,0.0001043,2]
[348135952,1736350241360,-500.0,0.0001043,2]
[348135954,1736350241369,-500.0,0.0001043,2]
[348135956,1736350241379,-500.0,0.0001043,2]
[348135958,1736350241388,-500.0,0.0001043,2]
[348135960,1736350241401,-500.0,0.0001043,2]
[348135962,1736350241410,-500.0,0.0001043,2]
[348135964,1736350241419,-626.09,0.0001043,2]
[348135966,1736350241430,-500.0,0.0001043,2]
[348135968,1736350241440,-500.0,0.0001043,2]
[348135970,1736350241449,-500.0,0.0001043,2]
[348135972,1736350241458,-500.0,0.0001043,2]
[348135974,1736350241468,-780.31,0.0001043,2]
[348135976,1736350241478,-589.15,0.0001043,2]
[348135978,1736350241488,-1769.41,0.0001043,2]
[348135980,1736350241498,-642.34,0.0001043,2]
[348135982,1736350241507,-500.0,0.0001043,2]
[348135984,1736350241517,-738.9,0.0001043,2]
[348135986,1736350241526,-979.74,0.0001043,2]
[348135988,1736350241535,-500.0,0.0001043,2]
[348135990,1736350241545,-500.0,0.0001043,2]
[348135992,1736350241554,-1576.21,0.0001043,2]
[348135993,1736350241563,-1152.76,0.0001043,2]
[348135994,1736350241572,-500.0,0.0001043,2]
[348135995,1736350241580,-1589.15,0.0001043,2]
[348135996,1736350241589,-500.0,0.0001043,2]
[348135997,1736350241598,-2988.36,0.0001043,2]
[348135998,1736350241607,-2284.01,0.0001043,2]
[348135999,1736350241616,-756.48,0.00010431,2]
[348136001,1736350241625,-500.0,0.00010431,2]
[348136003,1736350241634,-500.0,0.00010431,2]
[348136005,1736350241644,-500.0,0.00010431,2]
[348136007,1736350241654,-500.0,0.00010431,2]
[348136009,1736350241663,-500.0,0.00010431,2]
[348136011,1736350241672,-597.14,0.00010431,2]
[348136012,1736350241681,-467.16202898,0.00010431,2]
[348136014,1736350241690,-500.0,0.00010431,2]
[348136016,1736350241700,-1245.26,0.00010431,2]
[348136018,1736350241709,-500.0,0.00010431,2]
[348136020,1736350241718,-500.0,0.00010431,2]
[348136022,1736350241728,-500.0,0.00010431,2]
[348136024,1736350241737,-593.85,0.00010431,2]
[348136027,1736350241747,-500.0,0.00010431,2]
[348136028,1736350241755,-500.0,0.00010431,2]
[348136030,1736350241765,-4101.05,0.00010431,2]
[348136032,1736350241775,-947.05,0.00010431,2]
[348136034,1736350241784,-613.7,0.00010431,2]
[348136037,1736350241793,-500.0,0.00010431,2]
[348136038,1736350241803,-500.0,0.00010431,2]
[348136040,1736350241812,-500.0,0.00010431,2]
[348136042,1736350241821,-658.64,0.00010431,2]
[348136044,1736350241831,-500.0,0.00010431,2]
[348136046,1736350241840,-500.0,0.00010431,2]
[348136049,1736350241849,-546.42,0.00010431,2]
[348136050,1736350241859,-500.0,0.00010431,2]
[348136052,1736350241868,-500.0,0.00010431,2]
[348136054,1736350241877,-500.0,0.00010431,2]
[348136056,1736350241886,-500.0,0.00010431,2]
[348136059,1736350241899,-500.0,0.00010431,2]
[348136060,1736350241908,-182.77,0.00010431,2]
[348136063,1736350241918,-500.0,0.00010431,2]
[348136065,1736350241928,-2764.32,0.00010431,2]
[348136067,1736350241939,-622.02,0.00010431,2]
[348136068,1736350241951,-537.41,0.00010431,2]
[348136071,1736350241961,-500.0,0.00010431,2]
[348136073,1736350241971,-500.0,0.00010431,2]
[348136074,1736350241979,-500.0,0.00010431,2]
[348136076,1736350241988,-500.0,0.00010431,2]
[348136078,1736350241997,-500.0,0.00010431,2]
[348136080,1736350242006,-500.0,0.00010431,2]
[348136082,1736350242015,-1556.51,0.00010431,2]
[348136084,1736350242024,-500.0,0.00010431,2]
[348136086,1736350242033,-500.0,0.00010431,2]
[348136088,1736350242041,-571.43,0.00010431,2]
[348136090,1736350242051,-500.0,0.00010431,2]
[348136092,1736350242063,-561.21,0.00010431,2]
[348136094,1736350242072,-668.08,0.00010431,2]
[348136096,1736350242083,-624.25,0.00010431,2]
[348136098,1736350242093,-500.0,0.00010431,2]
[348136100,1736350242102,-500.0,0.00010431,2]
[348136102,1736350242112,-500.0,0.00010431,2]
[348136104,1736350242122,-500.0,0.00010431,2]
[348136106,1736350242131,-500.0,0.00010431,2]
[348136108,1736350242141,-500.0,0.00010431,2]
[348136110,1736350242151,-500.0,0.00010431,2]
[348136112,1736350242161,-1159.29,0.00010431,2]
[348136114,1736350242170,-500.0,0.00010431,2]
[348136116,1736350242179,-500.0,0.00010431,2]
[348136118,1736350242188,-556.36,0.00010431,2]
[348136120,1736350242197,-500.0,0.00010431,2]
[348136122,1736350242207,-483.33650648,0.00010431,2]
[348136124,1736350242217,-732.94,0.00010431,2]
[348136127,1736350242227,-1177.53,0.00010431,2]
[348136129,1736350242236,-500.0,0.00010431,2]
[348136131,1736350242248,-634.44,0.00010431,2]
[348136133,1736350242260,-666.48,0.00010431,2]
[348136135,1736350242274,-2414.52,0.00010431,2]
[348136138,1736350242287,-702.19,0.00010431,2]
[348136140,1736350242299,-500.0,0.00010431,2]
[348136142,1736350242310,-500.0,0.00010431,2]
[348136144,1736350242322,-500.0,0.00010431,2]
[348136147,1736350242335,-500.0,0.00010432,2]
[348136149,1736350242348,-500.0,0.00010432,2]
[348136152,1736350242360,-506.4,0.00010432,2]
[348136153,1736350242372,-500.0,0.00010432,2]
[348136154,1736350242384,-500.0,0.00010432,2]
[348136155,1736350242399,-500.0,0.00010432,2]
[348136156,1736350242410,-500.0,0.00010432,2]
[348136157,1736350242422,-3363.72,0.00010432,2]
[348136158,1736350242434,-1379.69,0.00010432,2]
[348136160,1736350242444,-1902.53,0.00010432,2]
[348136162,1736350242455,-1114.22,0.00010432,2]
[348136164,1736350242467,-789.34,0.00010432,2]
[348136167,1736350242479,-500.0,0.00010432,2]
[348136169,1736350242491,-1015.14,0.00010432,2]
[348136171,1736350242503,-2467.63,0.00010432,2]
[348136174,1736350242515,-717.44,0.00010432,2]
[348136176,1736350242527,-1352.5,0.00010432,2]
[348136178,1736350242540,-255.0,0.00010453,2]
[348136180,1736350242552,-316.69791746,0.00010468,2]
[348136183,1736350242563,-29999.99,0.00010475,2]
[348136185,1736350242575,-1127.23,0.00010475,2]
[348136187,1736350242588,-29999.99,0.00010475,2]
[348136189,1736350242599,-3649.2,0.00010475,2]
[348136192,1736350242612,-5559.0,0.000105,5]
[348136194,1736350242623,-3363.081,0.00010527,2]
[348136196,1736350242635,-155.722,0.00010527,2]
[348136199,1736350242647,-803.72,0.00010532,2]
[348136202,1736350242658,-635.85,0.00010533,2]
[348136205,1736350242669,-534.17,0.00010533,2]
[348136208,1736350242682,-1223.98,0.00010533,2]
[348136211,1736350242695,-605.38,0.00010533,2]
[348136213,1736350242707,-500.0,0.00010533,2]
[348136216,1736350242718,-500.0,0.00010533,2]
[348136218,1736350242729,-628.5,0.00010533,2]
[348136221,1736350242739,-844.83,0.00010533,2]
[348136226,1736350242749,-741.82,0.00010534,2]
[348136229,1736350242760,-1409.99,0.00010534,2]
[348136232,1736350242772,-2676.03,0.00010534,2]
[348136236,1736350242787,-1019.26,0.00010534,2]
[348136238,1736350242798,-1070.98,0.00010534,2]
[348136240,1736350242808,-1000.0,0.00010534,2]
[348136242,1736350242819,-777.78,0.00010534,2]
[348136244,1736350242830,-500.0,0.00010534,2]
[348136247,1736350242841,-2001.46,0.00010534,2]
[348136249,1736350242852,-1904.18,0.00010534,2]
[348136251,1736350242864,-500.0,0.00010542,2]
[348136252,1736350242876,-318.76,0.00010542,2]
[348136253,1736350242886,-500.0,0.00010542,2]
[348136254,1736350242900,-535.47,0.00010542,2]
[348136255,1736350242910,-1210.07,0.00010542,2]
[348136256,1736350242920,-1670.91,0.00010542,2]
[348136257,1736350242931,-1153.8,0.00010542,2]
[348136259,1736350242942,-1106.893711,0.00010542,2]
[348136261,1736350242953,-921.49,0.00010542,2]
[348136264,1736350242967,-937.469333,0.00010542,2]
[348136266,1736350242980,-500.0,0.00010542,2]
[348136268,1736350242992,-3204.95,0.00010542,2]
[348136270,1736350243003,-565.58,0.00010542,2]
[348136272,1736350243013,-500.0,0.00010542,2]
[348136275,1736350243027,-500.0,0.00010542,2]
[348136277,1736350243038,-500.0,0.00010542,2]
[348136279,1736350243048,-500.0,0.00010542,2]
[348136281,1736350243062,-500.0,0.00010542,2]
[348136283,1736350243074,-500.0,0.00010542,2]
[348136286,1736350243085,-2952.1,0.00010542,2]
[348136288,1736350243096,-1473.31,0.00010542,2]
[348136290,1736350243108,-500.0,0.00010542,2]
[348136292,1736350243119,-500.0,0.00010542,2]
[348136294,1736350243130,-500.0,0.00010542,2]
[348136297,1736350243141,-1324.67,0.00010542,2]
[348136299,1736350243154,-500.0,0.00010542,2]
[348136301,1736350243165,-1328.06,0.00010542,2]
[348136303,1736350243176,-500.0,0.00010542,2]
[348136305,1736350243187,-500.0,0.00010542,2]
[348136307,1736350243198,-923.48,0.00010542,2]
[348136309,1736350243209,-175.016573,0.00010542,2]
[348136311,1736350243219,-2084.72,0.00010542,2]